Workbook

Sheet Cover Page
D1: Last updated: 10/23/2017
C2: Philippines: Secondary National Roads Development Project (SNRDP)
B8: ERR Version | C8: Original ERR | D8: Closeout ERR
B9: Date | C9: 2011-01-07T14:57:16 | D9: 2017-04-06
B10: Amount of MCC funds | C10: $262.4 million | D10: $216.5 million
B11: Project Description | C11: The Secondary National Roads Development Project (SNRDP) will construct one, and rehabilitate two contiguous, existing road segments. By bringing about both vehicle operating cost savings and time savings for both passengers and goods as well as reduced road maintenance costs, the investment is intended to facilitate increased commerce in and between the provinces of Samar and Eastern Samar, and ultimately contribute to the Compact’s objective of increasing incomes. | D11: The Secondary National Roads Development Project (SNRDP) rehabilitated an existing 222 kilometer road segment. By bringing about vehicle operating cost savings and time savings for both passengers and goods, as well as reduced road maintenance costs, the investment is intended to facilitate increased commerce in and between the provinces of Samar and Eastern Samar, and ultimately contribute to the Compact’s objective of increasing incomes.
B12: Benefit streams included in ERR | C12: Reduced vehicle operating costs | D12: Reduced vehicle operating costs
C13: Reduced travel time | D13: Reduced travel time
C14: More frequent travel | D14: More frequent travel
C15: Changes in maintenance costs | D15: Changes in maintenance costs
B16: Costs included in ERR (other than costs borne by MCC) | C16: None | D16: $11.3 million
B17: Estimated ERR and time horizon | C17: 13.7% over 25 years | D17: 8.9% over 25 years
B19: Table of Contents
B20: Project Description
B21: This sheet should be read first, as it offers a summary of the project, a list of components, and states the economic rationale for the project.
B23: ERR & Sensitivity Analysis
B24: This sheet contains brief summary of the project's key parameters and ERR calculations, giving the user the opportunity to test the sensitivity to the ERR of various changes in parameters.
B26: Cost-Benefit Summary
B27: This worksheet summarizes the costs and benefits associated with all MCC investments. Benefits are summarized by year, and the associated ERR is computed over a 25-year timeframe.
B29: Assumptions & Data
B30: This worksheet contains assumptions and data used in the calculations.
B32: Notes
B33: This worksheet summarizes references used in the creation of these tables as well as a guide to abbreviations used throughout .

Sheet Project Description
B2: Philippines: Secondary National Roads Development Project (SNRDP)
B4: Project Description
B6: Summary
B7: The Secondary National Roads Development Project was designed to reduce transportation costs through the rehabilitation of an existing 222 kilometer road segment. The investment intended to reduce vehicle operating costs and time for both passengers and goods, reduce road maintenance costs, increase commerce in and between the provinces of Samar and Eastern Samar, and ultimately contribute to the Compact’s objective of increasing incomes.
B9: Closeout
B10: The project incorporated enhanced safety measures in the final road designs, including: - paved shoulders, sidewalk and curb construction in areas of high pedestrian activity, - improved gateway treatments to indicate required lower speeds, and - increased use of road narrowing, median islands, and traffic humps to slow traffic speeds.
B12: Economic Rationale
B13: For farmers, fishers, traders, and those in the tourism industry—the primary economic activities in these regions—secondary roads constitute a critical connection to markets. Improved roads, moreover, facilitate productive diversification—including transport itself and transport-reliant services such as logistics and shipping—labor mobility for skilled and unskilled workers alike, and reduced travel times to (and potentially increased access to and utilization of) social services such as education and health.
B14: The ERR for the SNRDP Project is calculated using the World Bank's Highway Design and Maintenance (HDM-4) model, which originally was developed by the World Bank and is now widely used in highway planning. HDM-4 estimates the total costs for different scenarios in road construction, maintenance and use so that users can determine the best strategy for road projects.
B17: Last updated: 10/23/2017

Sheet ERR & Sensitivity Analysis
B2: Philippines: Secondary National Roads Development Project (SNRDP) | I2: Last updated: 10/23/2017
B4: ERR and sensitivity analysis
B5: Change the "User Input" cells in the table below to see the effect on the compact's Economic Rate of Return (ERR) and net benefits (see chart below). To reset all values to the default MCC estimates, click the "Reset Parameters" button at right. Be sure to reset all summary parameters to their original values ("MCC Estimate" values) before changing specific parameters.
B8: Parameter type | C8: Description of key parameters | D8: Parameter values
D9: User Input | E9: MCC Estimate | F9: Plausible Range | G9: Values used in ERR computation | I9: All summary parameters set to initial values?
B10: Summary | C10: Actual Costs, as a percentage of estimated costs | D10: 1 | E10: 1 | F10: 80 - 120% | G10: =D10 -> 1 | I10: =IF(D10=E10,IF(D11=E11,"Y","N"),"N") -> Y
B11: Summary | C11: Actual Benefits, as a percentage of estimated benefits | D11: 1 | E11: 1 | F11: 80 - 120% | G11: =D11 -> 1
I14: More Info
C15: User Generated Economic rate of return (ERR): | D15: ='Cost-Benefit Summary'!H4 -> 0.08889099218 | I15: Project Description
I16: User's Guide
C18: MCC Estimated ERR: | E18: Original | F18: Closeout
D19: ERR | E19: 0.1368756201 | F19: 0.08889099218
D20: Date | E20: 2012-03-30 | F20: 2017-10-25
C22: Present Value (PV) of Benefits: | D22: =NPV(0.1,'Cost-Benefit Summary'!K16:K40)*1000000 -> 130971414.7
C24: Present Value (PV) of MCC Costs: | D24: =-NPV(0.1,'Cost-Benefit Summary'!F16:F40)*1000000 -> 143386102.3

Sheet Cost-Benefit Summary
C2: Philippines: Secondary National Roads Development Project (SNRDP) | L2: Last updated: 10/23/2017
B3: =IF('ERR & Sensitivity Analysis'!I10="y","","Note: Current calculations are based on user input and are not the original MCC estimates") -> 
G4: ERR = | H4: =IRR(L16:L40) -> 0.08889099218
D5: Sensitivity Analysis Shock Factors
G6: Project Costs as % of baseline = | H6: ='ERR & Sensitivity Analysis'!G10 -> 1
G7: Benefits as % of baseline = | H7: ='ERR & Sensitivity Analysis'!G11 -> 1
G9: Cost resulting ERR equal to hurdle: | H9: 1.11
G10: Benefit resulting ERR equal to hurdle: | H10: 0.9
B13: (Unless otherwise specified, all flows are in constant 2009 USD (millions))
R14: Cost breakdown, Mil. Current $
B15: Cal. Year | C15: Project Costs (USD) | D15: Provisional Costs (USD) | E15: MCC Admin & Controls Costs (USD) | F15: Total Economic Costs (USD) | G15: Normal Benefits (2009 PHP, millions) | H15: Generated Benefits (2009 PHP, millions) | I15: Maintenance Benefits (2009 PHP, millions) | J15: Total Benefits (2009 PHP, millions) | K15: Total Benefits (USD) | L15: Total Net Benefits (USD) | R15: Total Project Costs | S15: Pre-construction | T15: Civil Works | U15: Construction and Management Oversight | V15: Environmental and Social Mitigation, and Resettlement | W15: Prorated Portion of Program Administration and M&E Costs | X15: USD GDP Deflator, 2009 = 100
B16: 2010 | C16: =R16/(X16/100) -> -1.864629573 | D16: =V16/(X16/100) -> -5.686981111 | E16: =W16/(X16/100) -> -2.634873769 | F16: =$H$6*SUM(C16:D16)+E16 -> -10.18648445 | G16: 0 | H16: 0 | I16: 0 | J16: =$H$7*SUM(G16:I16) -> 0 | K16: =J16/'Assumptions & Data'!$S$8 -> 0 | L16: =K16+F16 -> -10.18648445 | R16: =SUM(S16:U16) -> -1.887403215 | S16: -1.887403215 | T16: 0 | U16: 0 | V16: -5.75643902 | W16: -2.667054783 | X16: ='Assumptions & Data'!T14/'Assumptions & Data'!S14*100 -> 101.2213494
B17: 2011 | C17: =R17/(X17/100) -> -2.124707716 | D17: -7.152701935 | E17: =W17/(X17/100) -> -2.634873769 | F17: =$H$6*SUM(C17:D17)+E17 -> -11.91228342 | G17: 0 | H17: 0 | I17: 0 | J17: 0 | K17: =J17/'Assumptions & Data'!$S$8 -> 0 | L17: =K17+F17 -> -11.91228342 | R17: -2.195060893 | S17: -2.195060893 | T17: 0 | U17: 0 | V17: -7.389541713 | W17: -2.722119529 | X17: ='Assumptions & Data'!U14/'Assumptions & Data'!S14*100 -> 103.3111932
B18: 2012 | C18: -33.93871587 | D18: -0.8870627945 | E18: -2.634873769 | F18: =$H$6*SUM(C18:D18)+E18 -> -37.46065244 | G18: 0 | H18: 0 | I18: 0 | J18: =$H$7*SUM(G18:I18) -> 0 | K18: =J18/'Assumptions & Data'!$S$8 -> 0 | L18: =K18+F18 -> -37.46065244 | R18: -35.70836148 | S18: -0.5500618922 | T18: =-32.1685417879288*(1+'Assumptions & Data'!H19) -> -34.259497 | U18: -0.8988025833 | V18: -0.9333163647 | W18: -2.772262372 | X18: ='Assumptions & Data'!V14/'Assumptions & Data'!S14*100 -> 105.2142385
B19: 2013 | C19: -51.95390223 | D19: -0.9253422197 | E19: -2.634873769 | F19: =$H$6*SUM(C19:D19)+E19 -> -55.51411822 | G19: 45.84135938 | H19: 0 | I19: 0 | J19: 45.84135938 | K19: =J19/'Assumptions & Data'!$S$8 -> 0.9614441886 | L19: =K19+F19 -> -54.55267403 | R19: -55.54571238 | S19: 0 | T19: =-50.8229488556757*(1+'Assumptions & Data'!H19) -> -54.12644053 | U19: -1.419271847 | V19: -0.9893153465 | W19: -2.817034606 | X19: ='Assumptions & Data'!W14/'Assumptions & Data'!S14*100 -> 106.913456
B20: 2014 | C20: -53.76886077 | D20: -0.9928110573 | E20: -2.634873769 | F20: =$H$6*SUM(C20:D20)+E20 -> -57.3965456 | G20: 129.2872786 | H20: 0 | I20: 0 | J20: 129.2872786 | K20: =J20/'Assumptions & Data'!$S$8 -> 2.71157977 | L20: =K20+F20 -> -54.68496583 | R20: -58.51535148 | S20: 0 | T20: =-53.5407925481424*(1+'Assumptions & Data'!H19) -> -57.02094406 | U20: -1.494407412 | V20: -1.080452275 | W20: -2.867469432 | X20: ='Assumptions & Data'!X14/'Assumptions & Data'!S14*100 -> 108.8275828
B21: 2015 | C21: -37.36773224 | D21: 0 | E21: -2.634873769 | F21: -40.00260601 | G21: 260.7446845 | H21: 0 | I21: 0 | J21: =$H$7*SUM(G21:I21) -> 260.7446845 | K21: =J21/'Assumptions & Data'!$S$8 -> 5.46867425 | L21: =K21+F21 -> -34.53393176 | R21: -41.1039379 | S21: 0 | T21: =-37.6100507982531*(1+'Assumptions & Data'!H19) -> -40.0547041 | U21: -1.049233798 | V21: 0 | W21: -2.898321125 | X21: ='Assumptions & Data'!Y14/'Assumptions & Data'!S14*100 -> 109.9984811
B22: 2016 | C22: 0 | D22: =V22 -> 0 | E22: 0 | F22: 0 | G22: 366.0597651 | H22: 0 | I22: 197.4 | J22: =$H$7*SUM(G22:I22) -> 563.4597651 | K22: =J22/'Assumptions & Data'!$S$8 -> 11.81760585 | L22: =K22+F22 -> 11.81760585 | R22: 0 | S22: 0 | T22: 0 | U22: 0 | V22: 0 | W22: 0
B23: 2017 | C23: 0 | D23: 0 | E23: 0 | F23: 0 | G23: 723.0394693 | H23: 361.5197448 | I23: 567.3 | J23: =$H$7*SUM(G23:I23) -> 1651.859214 | K23: =J23/'Assumptions & Data'!$S$8 -> 34.64492466 | L23: 34.64492466 | R23: 0 | S23: 0 | T23: 0 | U23: 0 | V23: 0 | W23: 0
B24: 2018 | C24: 0 | D24: 0 | E24: 0 | F24: 0 | G24: 780.7340528 | H24: 390.3670256 | I24: 12.56 | J24: =$H$7*SUM(G24:I24) -> 1183.661078 | K24: =J24/'Assumptions & Data'!$S$8 -> 24.82526872 | L24: 24.82526872 | R24: 0 | S24: 0 | T24: 0 | U24: 0 | V24: 0 | W24: 0
B25: 2019 | C25: 0 | D25: 0 | E25: 0 | F25: 0 | G25: 826.92778 | H25: 413.46387 | I25: 12.56 | J25: 1252.95165 | K25: =J25/'Assumptions & Data'!$S$8 -> 26.27852007 | L25: 26.27852007 | R25: 0 | S25: 0 | T25: 0 | U25: 0 | V25: 0 | W25: 0
B26: 2020 | C26: 0 | D26: 0 | E26: 0 | F26: 0 | G26: 868.4970411 | H26: 434.2485017 | I26: 12.56 | J26: 1315.305543 | K26: =J26/'Assumptions & Data'!$S$8 -> 27.58628644 | L26: 27.58628644 | R26: 0 | S26: 0 | T26: 0 | U26: 0 | V26: 0 | W26: 0
B27: 2021 | C27: 0 | D27: 0 | E27: 0 | F27: 0 | G27: 911.9662735 | H27: 455.9831387 | I27: 171.76 | J27: 1539.709412 | K27: =J27/'Assumptions & Data'!$S$8 -> 32.29277418 | L27: 32.29277418 | R27: 0 | S27: 0 | T27: 0 | U27: 0 | V27: 0 | W27: 0
B28: 2022 | C28: 0 | D28: 0 | E28: 0 | F28: 0 | G28: 962.591506 | H28: 481.2957605 | I28: 12.56 | J28: 1456.447266 | K28: =J28/'Assumptions & Data'!$S$8 -> 30.54649293 | L28: 30.54649293 | R28: 0 | S28: 0 | T28: 0 | U28: 0 | V28: 0 | W28: 0
B29: 2023 | C29: 0 | D29: 0 | E29: 0 | F29: 0 | G29: 1016.338718 | H29: 508.1694336 | I29: 12.56 | J29: 1537.068152 | K29: =J29/'Assumptions & Data'!$S$8 -> 32.23737825 | L29: 32.23737825 | R29: 0 | S29: 0 | T29: 0 | U29: 0 | V29: 0 | W29: 0
B30: 2024 | C30: 0 | D30: 0 | E30: 0 | F30: 0 | G30: 1063.831623 | H30: 531.9158296 | I30: 12.56 | J30: 1608.307452 | K30: =J30/'Assumptions & Data'!$S$8 -> 33.73150087 | L30: 33.73150087 | R30: 0 | S30: 0 | T30: 0 | U30: 0 | V30: 0 | W30: 0
B31: 2025 | C31: 0 | D31: 0 | E31: 0 | F31: 0 | G31: 1104.56183 | H31: 552.2809703 | I31: 12.56 | J31: 1669.402801 | K31: =J31/'Assumptions & Data'!$S$8 -> 35.01287141 | L31: 35.01287141 | R31: 0 | S31: 0 | T31: 0 | U31: 0 | V31: 0 | W31: 0
B32: 2026 | C32: 0 | D32: 0 | E32: 0 | F32: 0 | G32: 1121.6932 | H32: 560.8466046 | I32: 216.86 | J32: 1899.399804 | K32: =J32/'Assumptions & Data'!$S$8 -> 39.83666558 | L32: 39.83666558 | R32: 0 | S32: 0 | T32: 0 | U32: 0 | V32: 0 | W32: 0
B33: 2027 | C33: 0 | D33: 0 | E33: 0 | F33: 0 | G33: 949.8739535 | H33: 474.9370174 | I33: 169.86 | J33: 1594.670971 | K33: =J33/'Assumptions & Data'!$S$8 -> 33.44549897 | L33: 33.44549897 | R33: 0 | S33: 0 | T33: 0 | U33: 0 | V33: 0 | W33: 0
B34: 2028 | C34: 0 | D34: 0 | E34: 0 | F34: 0 | G34: 590.501142 | H34: 295.2505602 | I34: 12.66 | J34: 898.4117022 | K34: =J34/'Assumptions & Data'!$S$8 -> 18.84265043 | L34: 18.84265043 | R34: 0 | S34: 0 | T34: 0 | U34: 0 | V34: 0 | W34: 0
B35: 2029 | C35: 0 | D35: 0 | E35: 0 | F35: 0 | G35: 569.5365368 | H35: 284.7683062 | I35: 12.66 | J35: =$H$7*SUM(G35:I35) -> 866.964843 | K35: =J35/'Assumptions & Data'!$S$8 -> 18.18310629 | L35: 18.18310629 | R35: 0 | S35: 0 | T35: 0 | U35: 0 | V35: 0 | W35: 0
B36: 2030 | C36: 0 | D36: 0 | E36: 0 | F36: 0 | G36: 580.4513172 | H36: 290.2256133 | I36: 12.66 | J36: 883.3369305 | K36: =J36/'Assumptions & Data'!$S$8 -> 18.52648285 | L36: 18.52648285 | R36: 0 | S36: 0 | T36: 0 | U36: 0 | V36: 0 | W36: 0
B37: 2031 | C37: 0 | D37: 0 | E37: 0 | F37: =$H$6*SUM(C37:D37)+E37 -> 0 | G37: 581.596835 | H37: 290.7984286 | I37: 323.46 | J37: 1195.855264 | K37: =J37/'Assumptions & Data'!$S$8 -> 25.08102092 | L37: 25.08102092 | R37: 0 | S37: 0 | T37: 0 | U37: 0 | V37: 0 | W37: 0
B38: 2032 | C38: 0 | D38: 0 | E38: 0 | F38: =$H$6*SUM(C38:D38)+E38 -> 0 | G38: 544.4521168 | H38: 272.2260136 | I38: 12.66 | J38: 829.3381304 | K38: =J38/'Assumptions & Data'!$S$8 -> 17.39395028 | L38: 17.39395028 | R38: 0 | S38: 0 | T38: 0 | U38: 0 | V38: 0 | W38: 0
B39: 2033 | C39: 0 | D39: 0 | E39: 0 | F39: 0 | G39: 428.237669 | H39: 214.1188416 | I39: 12.66 | J39: 655.0165106 | K39: =J39/'Assumptions & Data'!$S$8 -> 13.73785215 | L39: 13.73785215 | R39: 0 | S39: 0 | T39: 0 | U39: 0 | V39: 0 | W39: 0
B40: 2034 | C40: 0 | D40: 0 | E40: 0 | F40: 0 | G40: 358.285314 | H40: 179.1425633 | I40: 12.66 | J40: 550.0878773 | K40: =J40/'Assumptions & Data'!$S$8 -> 11.53715335 | L40: 11.53715335 | N40: ERR (25 y): | O40: =IRR(#REF!) ->  | R40: 0 | S40: 0 | T40: 0 | U40: 0 | V40: 0 | W40: 0
B41: TOTALS | C41: =SUM(C16:C40) -> -181.0185484 | D41: =SUM(D16:D40) -> -15.64489912 | E41: =SUM(E16:E40) -> -15.80924261 | F41: =SUM(F16:F40) -> -212.4726901 | G41: =SUM(G16:G40) -> 14785.04947 | H41: =SUM(H16:H40) -> 6991.558224 | I41: =SUM(I16:I40) -> 1810.52 | J41: 23587.12769 | K41: 494.6997024 | L41: 282.2270123 | R41: =SUM(R16:R40) -> -194.9558273 | S41: =SUM(S16:S40) -> -4.632526 | T41: =SUM(T16:T40) -> -185.4615857 | U41: -4.86171564 | V41: -16.14906472 | W41: -16.74426185
D44: Parameter | I44: Unit | J44: Value
D45: Exchange rate (2009) | I45: PHP/$ | J45: ='Assumptions & Data'!$S$8 -> 47.67968845

Sheet Assumptions & Data
C2: Philippines: Secondary National Roads Development Project (SNRDP) | L2: Last updated: 10/23/2017
B6: Time Series | G6: Units | H6: Year
H7: 1998 | I7: 1999 | J7: 2000 | K7: 2001 | L7: 2002 | M7: 2003 | N7: 2004 | O7: 2005 | P7: 2006 | Q7: 2007 | R7: 2008 | S7: 2009 | T7: 2010 | U7: 2011 | V7: 2012 | W7: 2013 | X7: 2014 | Y7: 2015
B8: Official exchange rate | G8: PHP/$ | H8: 40.89305 | I8: 39.08898333 | J8: 44.19225 | K8: 50.99265 | L8: 51.60356667 | M8: 54.20333333 | N8: 56.03991667 | O8: 55.08549167 | P8: 51.3142725 | Q8: 46.14839118 | R8: 44.32328761 | S8: 47.67968845 | T8: 45.10966418 | U8: 43.31313692 | V8: 42.22879473 | W8: 42.44618483 | X8: 44.3951543 | Y8: 45.50283994
B9: CPI (Philippines; base year = 2010) | H9: 57.7849101 | I9: 61.21678423 | J9: 63.65145228 | K9: 67.05394191 | L9: 68.87966805 | M9: 70.45643154 | N9: 73.85892116 | O9: 78.67219917 | P9: 82.98755187 | Q9: 85.39419087 | R9: 92.44813278 | S9: 96.34854772 | T9: 100 | U9: 104.6473029 | V9: 107.966805 | W9: 111.2033195 | X9: 115.7676349 | Y9: 117.4273859
B10: GDP deflator | Q10: 96.16243683 | R10: 98.0487711 | S10: 98.79338756 | T10: 100 | U10: 102.0646275 | V10: 103.9447105 | W10: 105.6234249 | X10: 107.5144556 | Y10: 108.6712258
B12: Data series for BA
C13: GDP deflator (Philippines; base year = 2000) | H13: 88.75410334 | I13: 94.59860813 | J13: 99.99999941 | K13: 105.5494772 | L13: 109.942689 | M13: 113.4623239 | N13: 119.7218939 | O13: 126.6993106 | P13: 132.9696982 | Q13: 137.0788925 | R13: 147.4270598 | S13: 151.5155759 | T13: 157.9131527 | U13: 164.263977 | V13: 167.4973371 | W13: 170.9234266 | X13: 176.3534235 | Y13: 175.2391091
C14: GDP deflator (USA; base year = 2010) | Q14: 96.16243683 | R14: 98.0487711 | S14: 98.79338756 | T14: 100 | U14: 102.0646275 | V14: 103.9447105 | W14: 105.6234249 | X14: 107.5144556 | Y14: 108.6712258
C15: PPP exchange rate | G15: PHP/(2005 int'l $) | O15: 21.75488738
B17: Scalars | G17: Units
C18: Exchange rate | G18: (2009 const PHP)/(2005 int'l $ (PPP)) | H18: =(S9/O9)*O15 -> 26.64285259 | I18: (i.e., divide flows denominated in 2009 PHP by this figure)
C19: Cost increase resulting from civil works delay | H19: 0.065

Sheet Notes
O2: Last updated: 10/23/2017
B3: Sources: | K3: Abbreviations:
B4: Tetra Tech (2009). Assessment Report, Philippines SNRDP. (December 28, 2009) | K4: BA | L4: Beneficiary Analysis
B5: World Development Indicators (April, 2017) | K5: TT | L5: Tetra Tech (2009)
B6: Philippines Department of Public Works and Highways Summary of Road User Cost and Vehicle Operating Cost for CY 2015
